bitfinex/quotes_BTCUSD_20230103
["timestamp","ask_amount","ask_price","bid_price","bid_amount"]
[1672766858536,0.01044297,16641.0,16640.0,5.59468959]
[1672766858793,0.01044297,16641.0,16640.0,6.57705303]
[1672766859578,0.01044297,16641.0,16640.0,6.8651019]
[1672766860085,0.17766482,16642.0,16641.0,0.80459698]
[1672766860355,0.44697346,16642.0,16641.0,4.98474535]
[1672766860618,0.44697346,16642.0,16641.0,5.59953035]
[1672766860619,0.17766482,16642.0,16641.0,5.59953035]
[1672766862130,0.18766482,16642.0,16641.0,5.64553035]
[1672766862411,0.45697346,16642.0,16641.0,4.45735698]
[1672766862660,0.81797479,16642.0,16641.0,4.15735698]
[1672766862915,0.80797479,16642.0,16641.0,4.11135698]
[1672766863162,0.81797479,16642.0,16641.0,4.45735698]
[1672766863414,0.62869022,16642.0,16641.0,4.41135698]
[1672766863767,0.63869022,16642.0,16641.0,4.84607062]
[1672766864950,0.63869022,16642.0,16641.0,4.45835698]
[1672766865971,0.63869022,16642.0,16641.0,4.45842805]
[1672766866476,0.63869022,16642.0,16641.0,4.8462753]
[1672766867032,0.63869022,16642.0,16641.0,4.84631408]
[1672766868064,0.63869022,16642.0,16641.0,4.45842805]
[1672766869083,0.63869022,16642.0,16641.0,3.84364305]
[1672766869362,0.81797479,16642.0,16641.0,3.54364305]
[1672766869876,0.81797479,16642.0,16641.0,2.94271805]
[1672766870161,0.81797479,16642.0,16641.0,2.94264698]
[1672766872436,0.81797479,16642.0,16641.0,2.94271805]
[1672766874014,0.81797479,16642.0,16641.0,2.94264698]
[1672766874230,0.45898739,16642.0,16641.0,2.24264698]
[1672766875005,0.818544,16642.0,16641.0,2.24264698]
[1672766875279,0.818544,16642.0,16641.0,2.94264698]
[1672766876043,0.818544,16642.0,16641.0,3.54357198]
[1672766876547,0.818544,16642.0,16641.0,4.15835698]
[1672766877053,0.818544,16642.0,16641.0,3.54357198]
[1672766877298,0.818544,16642.0,16641.0,2.94264698]
[1672766877539,0.818544,16642.0,16641.0,2.94271805]
[1672766878042,0.818544,16642.0,16641.0,3.24271805]
[1672766878513,0.818544,16642.0,16641.0,3.84364305]
[1672766879790,0.818544,16642.0,16641.0,4.14409305]
[1672766880271,0.818544,16642.0,16641.0,3.84409305]
[1672766880509,0.818544,16642.0,16641.0,3.24316805]
[1672766881294,0.818544,16642.0,16641.0,2.84316805]
[1672766881559,0.818544,16642.0,16641.0,2.54316805]
[1672766881817,0.818544,16642.0,16641.0,2.24271805]
[1672766882346,0.818544,16642.0,16641.0,2.94271805]
[1672766885384,0.45888739,16642.0,16641.0,2.94271805]
[1672766888313,0.45888739,16642.0,16641.0,2.24271805]
[1672766889839,0.45888739,16642.0,16641.0,2.94271805]
[1672766890345,0.45888739,16642.0,16641.0,3.55750305]
[1672766890600,0.45888739,16642.0,16641.0,2.94264698]
[1672766891342,0.0099,16642.0,16641.0,2.94264698]
[1672766892144,0.45932105,16642.0,16641.0,2.94264698]
[1672766892401,0.0099,16642.0,16641.0,2.94271805]
[1672766892919,0.4592552,16642.0,16641.0,2.94271805]
[1672766894199,0.0099,16642.0,16641.0,2.34179305]
[1672766894469,0.0099,16642.0,16641.0,2.94271805]
[1672766895207,0.45914364,16642.0,16641.0,2.34179305]
[1672766895482,0.45914364,16642.0,16641.0,1.74086805]
[1672766895483,0.0099,16642.0,16641.0,1.74086805]
[1672766895727,0.45914042,16642.0,16641.0,2.34179305]
[1672766895977,0.45914042,16642.0,16641.0,2.34172842]
[1672766896230,0.45914042,16642.0,16641.0,2.94265342]
[1672766896966,0.45914042,16642.0,16641.0,3.54357842]
[1672766897221,0.81851741,16642.0,16641.0,3.54357842]
[1672766897480,0.81851741,16642.0,16641.0,4.53126996]
[1672766897746,0.81851741,16642.0,16641.0,5.14605496]
[1672766898499,1.08805153,16642.0,16641.0,5.14605496]
[1672766898771,1.0880691,16642.0,16641.0,4.53126996]
[1672766899827,0.63882868,16642.0,16641.0,4.53126996]
[1672766900103,0.63882868,16642.0,16641.0,2.63812107]
[1672766900353,0.0099,16642.0,16641.0,2.03719607]
[1672766900896,0.0099,16642.0,16641.0,1.43627107]
[1672766902013,0.0099,16642.0,16641.0,2.03719607]
[1672766902264,0.0099,16642.0,16641.0,2.037125]
[1672766903073,0.0099,16642.0,16641.0,2.63805]
[1672766903327,0.0099,16642.0,16641.0,2.037125]
[1672766903557,0.0099,16642.0,16641.0,1.4362]
[1672766904301,0.0099,16642.0,16641.0,2.63805]
[1672766905302,0.45921697,16642.0,16641.0,3.55831031]
[1672766905799,0.45921697,16642.0,16641.0,3.55838138]
[1672766906324,0.45921697,16642.0,16641.0,3.94549354]
[1672766906575,0.45921697,16642.0,16641.0,3.55838138]
[1672766906820,0.45921697,16642.0,16641.0,3.25838138]
[1672766907085,0.45921697,16642.0,16641.0,3.55831031]
[1672766907372,0.45921697,16642.0,16641.0,3.55838138]
[1672766908393,0.45921697,16642.0,16641.0,3.25838138]
[1672766908896,0.45921697,16642.0,16641.0,3.55838138]
[1672766909158,0.45921697,16642.0,16641.0,2.95793138]
[1672766909420,0.45921697,16642.0,16641.0,3.25793138]
[1672766910104,0.45921697,16642.0,16641.0,3.07723138]
[1672766911086,0.45921697,16642.0,16641.0,3.37769138]
[1672766911590,0.0099,16642.0,16641.0,3.37762031]
[1672766911857,0.0099,16642.0,16641.0,3.07762031]
[1672766912378,0.0099,16642.0,16641.0,2.77716031]
[1672766912904,0.0099,16642.0,16641.0,2.77723138]
[1672766913159,0.45932456,16642.0,16641.0,2.77723138]
[1672766913488,0.45932456,16642.0,16641.0,3.07723138]
[1672766914190,0.45932456,16642.0,16641.0,3.67815638]
[1672766914732,0.45932456,16642.0,16641.0,4.06532639]
[1672766915276,0.81888893,16642.0,16641.0,4.06532639]
[1672766917455,0.81888893,16642.0,16641.0,4.06525307]
[1672766917597,0.81888893,16642.0,16641.0,3.36525307]
[1672766917857,0.81888893,16642.0,16641.0,2.97808306]
[1672766918109,0.81890489,16642.0,16641.0,3.36518603]
[1672766918600,0.81890489,16642.0,16641.0,4.0651838]
[1672766920130,0.45932456,16642.0,16641.0,4.2441838]
[1672766921191,0.81893024,16642.0,16641.0,4.2441838]
[1672766921405,0.45932456,16642.0,16641.0,4.2441838]
[1672766921657,0.45932456,16642.0,16641.0,4.24407799]
[1672766922430,0.45932456,16642.0,16641.0,4.85886299]
[1672766923196,0.81893572,16642.0,16641.0,4.85886299]
[1672766923978,0.63923906,16642.0,16641.0,4.85886299]
[1672766924740,0.81903067,16642.0,16641.0,4.85886299]
[1672766925109,0.45941951,16642.0,16641.0,4.85886299]
[1672766926026,0.81903067,16642.0,16641.0,4.85886299]
[1672766926294,0.63923906,16642.0,16641.0,4.85886299]
[1672766928070,0.63923906,16642.0,16641.0,5.15931299]
[1672766929917,0.63923906,16642.0,16641.0,3.87087199]
[1672766930225,0.45932456,16642.0,16641.0,2.95608699]
[1672766930683,0.45932456,16642.0,16641.0,2.35516199]
[1672766931158,0.45932456,16642.0,16641.0,2.95608699]
[1672766931448,0.45925005,16642.0,16641.0,2.95608699]
[1672766931690,0.626417,16642.0,16641.0,2.95608699]
[1672766932437,0.0099,16642.0,16641.0,2.95608699]
[1672766932687,0.0099,16642.0,16641.0,2.95615806]
[1672766934443,0.38260911,16642.0,16641.0,2.35516199]
[1672766934689,0.99912611,16642.0,16641.0,1.75423699]
[1672766935696,0.99912611,16642.0,16641.0,2.35516199]
[1672766936453,1.5380082,16642.0,16641.0,2.03535168]
[1672766936958,1.5380082,16642.0,16641.0,1.25542668]
[1672766937956,1.5380082,16642.0,16641.0,1.25549775]
[1672766938209,1.5380082,16642.0,16641.0,1.25542668]
[1672766939524,1.5380082,16642.0,16641.0,1.85635168]
[1672766939779,1.5380082,16642.0,16641.0,1.25542668]
[1672766941060,1.5380082,16642.0,16641.0,1.85635168]
[1672766941836,0.99912611,16642.0,16641.0,1.85635168]
[1672766942092,0.38260911,16642.0,16641.0,1.85627661]
[1672766942346,2.39555632,16642.0,16641.0,0.747]
[1672766942603,2.02583066,16642.0,16641.0,0.747]
[1672766942915,2.91123617,16642.0,16641.0,0.747]
[1672766943118,4.12706983,16642.0,16641.0,0.7]
[1672766943339,4.23006983,16642.0,16641.0,0.704]
[1672766943622,3.52084768,16642.0,16641.0,0.7]
[1672766943867,3.32070866,16642.0,16641.0,0.704]
[1672766944652,3.63130594,16642.0,16641.0,0.704]
[1672766944905,4.23743111,16642.0,16641.0,0.704]
[1672766946198,3.63120896,16642.0,16641.0,0.704]
[1672766946953,4.23743111,16642.0,16641.0,0.704]
[1672766947462,4.23743111,16642.0,16641.0,0.004]
[1672766947747,3.56823383,16642.0,16641.0,0.004]
[1672766948002,3.87237748,16642.0,16641.0,0.004]
[1672766949709,3.56823383,16642.0,16641.0,0.004]
[1672766949963,3.90983226,16642.0,16641.0,0.004]
[1672766950956,3.30361011,16642.0,16641.0,0.004]
[1672766956991,2.96201168,16642.0,16641.0,0.004]
[1672766957219,3.56823383,16642.0,16641.0,0.004]
[1672766957486,2.96201168,16642.0,16641.0,0.004]
[1672766957772,3.27497872,16642.0,16641.0,0.004]
[1672766958019,3.88120087,16642.0,16641.0,0.004]
[1672766958558,3.27497872,16642.0,16641.0,0.004]
[1672766959529,2.67408972,16642.0,16641.0,0.004]
[1672766959789,3.21193153,16642.0,16641.0,0.004]
[1672766960313,3.81282053,16642.0,16641.0,0.004]
[1672766964498,2.61104253,16642.0,16641.0,0.704]
[1672766965002,1.99452553,16642.0,16641.0,0.704]
[1672766965267,1.99452553,16642.0,16641.0,0.70407107]
[1672766965524,1.99452553,16642.0,16641.0,0.70401027]
[1672766965782,1.55469785,16642.0,16641.0,0.7039392]
[1672766966296,1.55469785,16642.0,16641.0,0.70401027]
[1672766966551,1.99462251,16642.0,16641.0,0.7039392]
[1672766966829,2.59551151,16642.0,16641.0,0.7039392]
[1672766968867,3.21202851,16642.0,16641.0,0.7039392]
[1672766970654,2.61113951,16642.0,16641.0,0.0039392]
[1672766970977,2.6741867,16642.0,16641.0,0.0039392]
[1672766971676,2.6741867,16642.0,16641.0,0.7039392]
[1672766971935,2.0576697,16642.0,16641.0,0.7039392]
[1672766972671,2.6585587,16642.0,16641.0,0.7039392]
[1672766973192,3.26478085,16642.0,16641.0,0.7039392]
[1672766973445,2.66389185,16642.0,16641.0,0.7039392]
[1672766974718,2.66389185,16642.0,16641.0,0.8841392]
[1672766974938,3.26478085,16642.0,16641.0,0.8841392]
[1672766975966,2.66389185,16642.0,16641.0,0.8841392]
[1672766977418,3.26478085,16642.0,16641.0,0.8841392]
[1672766978212,2.66389185,16642.0,16641.0,0.8841392]
[1672766982777,2.22396719,16642.0,16641.0,0.8841392]
[1672766983566,1.61774504,16642.0,16641.0,0.8841392]
[1672766983828,1.01685604,16642.0,16641.0,0.8926392]
[1672766984082,0.41596704,16642.0,16641.0,0.8926392]
[1672766984335,1.01685604,16642.0,16641.0,0.8926392]
[1672766985618,1.61731375,16642.0,16641.0,0.8926392]
[1672766986384,2.65812741,16642.0,16641.0,0.8926392]
[1672766986386,3.26434956,16642.0,16641.0,0.96286789]
[1672766986627,3.4409419,16642.0,16641.0,0.96286789]
[1672766986876,3.88086656,16642.0,16641.0,0.96286789]
[1672766987635,3.27997756,16642.0,16641.0,0.96286789]
[1672766988613,3.88086656,16642.0,16641.0,0.96286789]
[1672766988875,3.27997756,16642.0,16641.0,0.96286789]
[1672766990390,2.67375541,16642.0,16641.0,0.96286789]
[1672766990640,2.67375541,16642.0,16641.0,0.95436789]
[1672766991155,3.27464441,16642.0,16641.0,0.95436789]
[1672766992406,2.67375541,16642.0,16641.0,0.95436789]
[1672766992658,3.27464441,16642.0,16641.0,0.95436789]
[1672766992922,2.67375541,16642.0,16641.0,0.95436789]
[1672766994159,3.27464441,16642.0,16641.0,0.95436789]
[1672766995175,2.67375541,16642.0,16641.0,0.95436789]
[1672766995998,2.84053546,16642.0,16641.0,0.95436789]
[1672766996254,3.36750456,16642.0,16641.0,0.95436789]
[1672766996951,3.80742922,16642.0,16641.0,0.95436789]
[1672766997422,3.36750456,16642.0,16641.0,0.95436789]
[1672766997670,3.80742922,16642.0,16641.0,0.95436789]
[1672766999726,3.20072451,16642.0,16641.0,0.10117025]
[1672766999978,3.44165582,16642.0,16641.0,0.10117025]
[1672767000192,2.84076682,16642.0,16641.0,0.10117025]
[1672767000411,3.28436744,16642.0,16641.0,0.10117025]
[1672767000686,3.27832037,16642.0,16641.0,0.10117025]
[1672767003805,0.30599974,16641.0,16639.0,0.5677]
[1672767004059,2.81027434,16640.0,16638.0,0.19146118]
[1672767004306,2.04294302,16640.0,16639.0,0.0085]
[1672767004561,3.02631186,16640.0,16639.0,0.0085]
[1672767004807,3.46840054,16640.0,16639.0,0.0085]
[1672767005068,2.86148868,16640.0,16639.0,0.0085]
[1672767005321,2.8674223,16640.0,16639.0,0.0085]
[1672767005575,3.4683833,16640.0,16639.0,0.0085]
[1672767005827,2.85523881,16640.0,16639.0,0.0085]
[1672767006336,2.85523881,16640.0,16639.0,0.0135]
[1672767006595,2.95423881,16640.0,16639.0,0.0085]
[1672767006811,2.95423881,16640.0,16639.0,0.0125]
[1672767007101,3.25828311,16640.0,16639.0,0.0085]
[1672767007316,3.35728311,16640.0,16639.0,0.0135]
[1672767007660,3.15221204,16640.0,16639.0,0.0085]
[1672767007910,2.71012336,16640.0,16639.0,0.0085]
[1672767008160,3.15221204,16640.0,16639.0,0.0085]
[1672767008421,2.54531742,16640.0,16639.0,0.0085]
[1672767008717,2.81018974,16640.0,16639.0,0.0125]
[1672767008947,2.65131742,16640.0,16639.0,0.0125]
[1672767010215,2.65131742,16640.0,16639.0,0.1932]
[1672767010983,2.20922874,16640.0,16639.0,0.1932]
[1672767011241,2.65131742,16640.0,16639.0,0.1932]
[1672767011753,2.20922874,16640.0,16639.0,0.1932]
[1672767012268,2.74838963,16640.0,16639.0,0.1932]
[1672767012514,3.19047831,16640.0,16639.0,0.1932]
[1672767012765,2.65131742,16640.0,16639.0,0.1932]
[1672767013004,3.19048465,16640.0,16639.0,0.1932]
[1672767013251,2.65131742,16640.0,16639.0,0.1932]
[1672767013759,3.25227842,16640.0,16639.0,0.1932]
[1672767014013,2.65131742,16640.0,16639.0,0.1932]
[1672767015281,3.25821204,16640.0,16639.0,0.1932]
[1672767016831,3.25492813,16640.0,16639.0,0.1932]
[1672767017874,3.41380045,16640.0,16639.0,0.1932]
[1672767018130,2.81283945,16640.0,16639.0,0.1932]
[1672767018644,3.25492813,16640.0,16639.0,0.1932]
[1672767018932,2.81283945,16640.0,16639.0,0.1932]
[1672767019195,3.41380045,16640.0,16639.0,0.1932]
[1672767019410,1.60498383,16640.0,16639.0,0.51903409]
[1672767019662,2.14392142,16640.0,16639.0,0.51903409]
[1672767020670,2.5860101,16640.0,16639.0,0.51903409]
[1672767020932,2.04707251,16640.0,16639.0,0.51903409]
[1672767021186,0.64496481,16640.0,16639.0,0.51903409]
[1672767021484,0.64496481,16640.0,16639.0,0.53101149]
[1672767021736,0.64496481,16640.0,16639.0,1.03101149]
[1672767022222,0.64496481,16640.0,16639.0,1.27107151]
[1672767022473,0.106,16640.0,16639.0,2.53350549]
[1672767022743,0.106,16640.0,16639.0,2.54737549]
[1672767023479,0.106,16640.0,16639.0,1.63200849]
[1672767023744,0.106,16640.0,16639.0,1.62003109]
[1672767024013,0.106,16640.0,16639.0,1.01903409]
[1672767024321,0.106,16640.0,16639.0,2.32003109]
[1672767025278,0.106,16640.0,16639.0,1.71903409]
[1672767025574,0.10267887,16640.0,16639.0,1.71903409]
[1672767027708,0.64164368,16640.0,16639.0,1.71903409]
[1672767027986,0.10267887,16640.0,16639.0,1.71903409]
[1672767030305,0.10267887,16640.0,16639.0,1.89853409]
[1672767030576,0.10267887,16640.0,16639.0,2.49953109]
[1672767030821,0.10014883,16640.0,16639.0,2.49953109]
[1672767032091,0.09999622,16640.0,16639.0,2.49953109]
[1672767032612,0.09999622,16640.0,16639.0,1.89853409]
[1672767033117,0.09983889,16640.0,16639.0,1.89853409]
[1672767034886,0.09983889,16640.0,16639.0,1.86903257]
[1672767035635,0.09983889,16640.0,16639.0,3.08489657]
[1672767035924,0.09983889,16640.0,16639.0,2.47002957]
[1672767036149,0.09983889,16640.0,16639.0,3.08489657]
[1672767036647,0.09983889,16640.0,16639.0,2.47002957]
[1672767036900,0.09983889,16640.0,16639.0,3.09339657]
[1672767037182,0.09983889,16640.0,16639.0,2.47852957]
[1672767037429,0.09983889,16640.0,16639.0,3.09339657]
[1672767038213,0.09983889,16640.0,16639.0,2.49239957]
[1672767038824,0.09983889,16640.0,16639.0,1.87753257]
[1672767039312,0.09983889,16640.0,16639.0,2.47852957]
[1672767039897,0.09946764,16640.0,16639.0,2.47852957]
[1672767040600,0.09946764,16640.0,16639.0,1.87753257]
[1672767041358,0.63843245,16640.0,16639.0,1.87753257]
[1672767041853,1.96782299,16640.0,16639.0,0.188]
[1672767042120,3.18513952,16640.0,16639.0,0.188]
[1672767042606,3.24713571,16640.0,16639.0,0.188]
[1672767042871,2.64617471,16640.0,16639.0,0.188]
[1672767043378,2.14220213,16640.0,16639.0,0.188]
[1672767043635,2.14204364,16640.0,16639.0,0.188]
[1672767044138,1.54108264,16640.0,16639.0,0.688]
[1672767044657,0.92456564,16640.0,16639.0,0.688]
[1672767045412,0.92440111,16640.0,16639.0,0.688]
[1672767045669,1.52536211,16640.0,16639.0,0.688]
[1672767045928,2.14187911,16640.0,16639.0,0.688]
[1672767046189,1.52536211,16640.0,16639.0,0.688]
[1672767046441,2.74284011,16640.0,16639.0,0.688]
[1672767047279,2.64568402,16640.0,16639.0,0.188]
[1672767048026,2.45641781,16640.0,16639.0,0.188]
[1672767048296,1.91725448,16640.0,16639.0,0.188]
[1672767048555,1.31629348,16640.0,16639.0,0.188]
[1672767049097,1.85543232,16640.0,16639.0,0.188]
[1672767050628,1.25447132,16640.0,16639.0,0.188]
[1672767050881,0.63795432,16640.0,16639.0,0.188]
[1672767051865,1.25447132,16640.0,16639.0,0.688]
[1672767052362,1.23891532,16640.0,16639.0,0.688]
[1672767053348,1.85543232,16640.0,16639.0,0.688]
[1672767054345,2.45639332,16640.0,16639.0,0.688]
[1672767055119,2.297521,16640.0,16639.0,0.688]
[1672767055370,1.85543232,16640.0,16639.0,0.688]
[1672767056846,2.45639332,16640.0,16639.0,0.688]
[1672767057112,2.898482,16640.0,16639.0,0.688]
[1672767057361,1.75838216,16640.0,16639.0,0.688]
[1672767057606,1.85555807,16640.0,16639.0,0.688]
[1672767058373,1.25459707,16640.0,16639.0,0.688]
[1672767058591,1.25459707,16640.0,16639.0,1.07838517]
[1672767058837,0.63808007,16640.0,16639.0,1.07838517]
[1672767059331,1.23904107,16640.0,16639.0,1.07838517]
[1672767061291,0.63808007,16640.0,16639.0,1.67938217]
[1672767062288,0.63808007,16640.0,16639.0,1.07838517]
[1672767068932,0.63808007,16640.0,16639.0,1.07827468]
[1672767071498,1.23904107,16640.0,16639.0,1.07827468]
[1672767071744,1.22710763,16640.0,16639.0,1.07827468]
[1672767071996,0.62614663,16640.0,16639.0,1.07827468]
[1672767072502,0.62614663,16640.0,16639.0,1.67927168]
[1672767072761,0.62614663,16640.0,16639.0,1.97976168]
[1672767073274,0.08688204,16640.0,16639.0,3.46145868]
[1672767073533,0.08688204,16640.0,16639.0,4.37632568]
[1672767073781,0.53643297,16640.0,16639.0,4.07632568]
[1672767074817,0.53643297,16640.0,16639.0,4.37632568]
[1672767078034,0.89599577,16640.0,16639.0,4.37632568]
[1672767082233,0.89599577,16640.0,16639.0,4.97732268]
[1672767082477,1.16556848,16640.0,16639.0,4.97732268]
[1672767083241,0.89599577,16640.0,16639.0,4.97732268]
[1672767084002,1.16557928,16640.0,16639.0,4.97732268]
[1672767084247,0.89599577,16640.0,16639.0,4.97732268]
[1672767085024,1.16558923,16640.0,16639.0,4.97732268]
[1672767085286,0.7160383,16640.0,16639.0,4.86669279]
[1672767085568,0.26661188,16640.0,16639.0,5.10217044]
[1672767085862,0.08688204,16640.0,16639.0,5.10217044]
[1672767086057,0.26661188,16640.0,16639.0,5.10217044]
[1672767087098,0.08688204,16640.0,16639.0,5.10217044]
[1672767087360,0.08688204,16640.0,16639.0,5.48525227]
[1672767087631,0.26661188,16640.0,16639.0,5.10217044]
[1672767087890,0.26661188,16640.0,16639.0,5.44997027]
[1672767089192,0.26661188,16640.0,16639.0,5.17021499]
[1672767090168,0.26661188,16640.0,16639.0,4.98951499]
[1672767090921,0.26661188,16640.0,16639.0,4.98958607]
[1672767091181,0.53620534,16640.0,16639.0,4.98958607]
[1672767094058,0.53620534,16640.0,16639.0,4.98956607]
[1672767095076,0.26661188,16640.0,16639.0,4.98956607]
[1672767095335,0.53620534,16640.0,16639.0,4.98956607]
[1672767095584,0.53620534,16640.0,16639.0,4.28956607]
[1672767095838,0.53620534,16640.0,16639.0,4.28946837]
[1672767096097,0.26661188,16640.0,16639.0,4.28946837]
[1672767096618,0.26661188,16640.0,16639.0,4.98946837]
[1672767097124,0.26661188,16640.0,16639.0,4.98939729]
[1672767097372,0.53620534,16640.0,16639.0,4.98939729]
[1672767099945,0.89576814,16640.0,16639.0,4.98939729]
[1672767100724,0.89576814,16640.0,16639.0,4.98946837]
[1672767101012,0.53620534,16640.0,16639.0,4.98946837]
[1672767103264,0.26661188,16640.0,16639.0,4.98946837]
[1672767105870,0.26661188,16640.0,16639.0,4.98945837]
[1672767106630,0.53620534,16640.0,16639.0,4.98945837]
[1672767107082,0.26661188,16640.0,16639.0,4.98945837]
[1672767108396,0.08688204,16640.0,16639.0,4.91922985]
[1672767108651,0.08688204,16640.0,16639.0,8.57127174]
[1672767108906,0.08688204,16640.0,16639.0,8.79382941]
[1672767109700,0.08688204,16640.0,16639.0,9.37569823]
[1672767109972,0.07486404,16640.0,16639.0,9.43847825]
[1672767110219,0.07486404,16640.0,16639.0,9.9833645]
[1672767110764,0.07486404,16640.0,16639.0,10.34345892]
[1672767111053,9e-05,16643.0,16639.0,10.34345892]
[1672767111326,9e-05,16643.0,16642.0,2.10039]
[1672767111561,9e-05,16643.0,16642.0,5.61672629]
[1672767111818,9e-05,16643.0,16642.0,7.42789329]
[1672767112329,0.00709,16643.0,16642.0,7.42789329]
[1672767112593,9e-05,16643.0,16642.0,7.42789329]
[1672767112867,0.00709,16643.0,16642.0,7.50189329]
[1672767113087,0.007,16643.0,16642.0,7.50189329]
[1672767113340,0.007,16643.0,16642.0,7.87056539]
[1672767113853,0.007,16643.0,16642.0,7.79026719]
[1672767114107,0.007,16643.0,16642.0,7.50196436]
[1672767115174,0.007,16643.0,16642.0,7.83900022]
[1672767115438,0.007,16643.0,16642.0,7.50196436]
[1672767121270,0.007,16643.0,16642.0,7.78391696]
[1672767122059,0.007,16643.0,16642.0,7.50196436]
[1672767122315,0.007,16643.0,16642.0,7.7902373]
[1672767123103,0.007,16643.0,16642.0,7.50196436]
[1672767124522,0.007,16643.0,16642.0,7.94405304]
[1672767124691,0.007,16643.0,16642.0,7.96203464]
[1672767126500,0.007,16643.0,16642.0,7.96199464]
[1672767128389,0.007,16643.0,16642.0,6.87679464]
[1672767133597,0.00688592,16643.0,16642.0,6.17679464]
[1672767134614,0.00688592,16643.0,16642.0,6.87679464]
[1672767136150,0.00688592,16643.0,16642.0,6.57644464]
[1672767136403,0.00688592,16643.0,16642.0,6.87680464]
[1672767140105,0.00665076,16643.0,16642.0,6.87680464]
[1672767145244,0.00665076,16643.0,16642.0,7.43540464]
[1672767145544,0.00665076,16643.0,16642.0,7.61545152]
[1672767146756,0.00665076,16643.0,16642.0,7.88552184]
[1672767148507,0.00665076,16643.0,16642.0,8.06556938]
[1672767149033,0.00665076,16643.0,16642.0,8.51608656]
[1672767149288,0.00665076,16643.0,16642.0,8.51631688]
[1672767149570,0.00665076,16643.0,16642.0,8.24601624]
[1672767149846,0.00665076,16643.0,16642.0,8.51631689]
[1672767151352,0.00665076,16643.0,16642.0,8.06579971]
[1672767151880,0.00665076,16643.0,16642.0,7.36579971]
[1672767152865,0.00665076,16643.0,16642.0,8.06579971]
[1672767154671,0.00665076,16643.0,16642.0,8.24601624]
[1672767154922,0.00665076,16643.0,16642.0,8.51640639]
[1672767156938,0.00665076,16643.0,16642.0,7.79549906]
[1672767161201,0.00665076,16643.0,16642.0,7.09549906]
[1672767161887,0.00665076,16643.0,16642.0,7.81668289]
[1672767162132,0.00665076,16643.0,16642.0,8.065943]
[1672767162380,0.00665076,16643.0,16642.0,8.24624389]
[1672767162623,0.00665076,16643.0,16642.0,7.88614947]
[1672767163388,0.00665076,16643.0,16642.0,8.065943]
[1672767163892,0.00665076,16643.0,16642.0,8.51668289]
[1672767164392,0.00665076,16643.0,16642.0,8.24623895]
[1672767164643,0.00665076,16643.0,16642.0,8.5167551]
[1672767165134,0.00665076,16643.0,16642.0,8.24623895]
[1672767166977,0.00655337,16643.0,16642.0,8.24623895]
[1672767167992,0.00655337,16643.0,16642.0,7.54623895]
[1672767168208,0.00655337,16643.0,16642.0,7.14623895]
[1672767168964,0.00655337,16643.0,16642.0,7.84623895]
[1672767169194,0.00655337,16643.0,16642.0,8.24623895]
[1672767174946,0.00655337,16643.0,16642.0,7.54623895]
[1672767175695,0.00655337,16643.0,16642.0,7.54683611]
[1672767176227,0.00655337,16643.0,16642.0,7.88614453]
[1672767178918,0.00655337,16643.0,16642.0,8.24682599]
[1672767182199,0.00655337,16643.0,16642.0,7.54682599]
[1672767183219,0.00655337,16643.0,16642.0,8.24682599]
[1672767186028,0.00655337,16643.0,16642.0,8.61416252]
[1672767186285,0.00655337,16643.0,16642.0,8.24682599]
[1672767186510,0.00655337,16643.0,16642.0,8.22884439]
[1672767186993,0.00655337,16643.0,16642.0,8.04865058]
[1672767187242,0.00655337,16643.0,16642.0,8.39948769]
[1672767187768,0.00655337,16643.0,16642.0,8.04865058]
[1672767188544,0.00655337,16643.0,16642.0,8.49939047]
[1672767188806,0.00655337,16643.0,16642.0,8.04865058]
[1672767189320,0.00655337,16643.0,16642.0,8.49939047]
[1672767189582,0.00655337,16643.0,16642.0,8.04865058]
[1672767189840,0.00655337,16643.0,16642.0,8.22884439]
[1672767192898,0.00655337,16643.0,16642.0,7.52884439]
[1672767193906,0.00655337,16643.0,16642.0,7.86816293]
[1672767194184,0.00655337,16643.0,16642.0,8.46831297]
[1672767194434,0.00655337,16643.0,16642.0,8.01757308]
[1672767195212,0.00655337,16643.0,16642.0,8.46839063]
[1672767195446,0.00644402,16643.0,16642.0,8.03555468]
[1672767195703,0.00644402,16643.0,16642.0,8.48636637]
[1672767198005,0.00644402,16643.0,16642.0,8.84701323]
[1672767198517,0.00644402,16643.0,16642.0,8.48636637]
[1672767200321,0.00644402,16643.0,16642.0,8.48634637]
[1672767203350,0.00644402,16643.0,16642.0,9.11963468]
[1672767204124,0.00644402,16643.0,16642.0,9.5704302]
[1672767204631,0.00644402,16643.0,16642.0,8.4874302]
[1672767204891,0.00644402,16643.0,16642.0,7.7874302]
[1672767205900,0.00644402,16643.0,16642.0,8.4874302]
[1672767206161,0.0048087,16645.0,16643.0,0.5]
[1672767206422,0.0048087,16645.0,16644.0,5.43028561]
[1672767206670,0.0048087,16645.0,16644.0,6.32625726]
[1672767206957,0.0048087,16645.0,16644.0,7.02625726]
[1672767207488,0.18483863,16645.0,16644.0,6.84594344]
[1672767208317,0.18483863,16645.0,16644.0,7.21885535]
[1672767209280,0.18483863,16645.0,16644.0,7.36085535]
[1672767210052,0.18483863,16645.0,16644.0,7.36092641]
[1672767212217,0.18483863,16645.0,16644.0,7.66125641]
[1672767214185,0.18483863,16645.0,16644.0,7.84157023]
[1672767215464,0.0048087,16645.0,16644.0,7.84157023]
[1672767216767,0.18483863,16645.0,16644.0,7.84157023]
[1672767217021,0.18483863,16645.0,16644.0,7.46865832]
[1672767217259,0.0048087,16645.0,16644.0,7.46865832]
[1672767217513,0.0048087,16645.0,16644.0,7.73912906]
[1672767217761,0.0048087,16645.0,16644.0,7.91944289]
[1672767218538,0.0048087,16645.0,16644.0,8.88061771]
[1672767218799,0.00469274,16645.0,16644.0,9.96471771]
[1672767220345,0.00469274,16645.0,16644.0,9.78427474]
[1672767220597,0.00469274,16645.0,16644.0,9.60386964]
[1672767221090,0.00469274,16645.0,16644.0,8.82427463]
[1672767221589,0.00469274,16645.0,16644.0,8.51936964]
[1672767222831,0.00469274,16645.0,16644.0,8.69977474]
[1672767223580,0.00469274,16645.0,16644.0,9.15057026]
[1672767223844,0.00469274,16645.0,16644.0,8.69977474]
[1672767224091,0.00469274,16645.0,16644.0,9.02871423]
[1672767224337,0.00469274,16645.0,16644.0,8.51936194]
[1672767224839,0.00469274,16645.0,16644.0,8.24900939]
[1672767225330,0.00469274,16645.0,16644.0,8.51936194]
[1672767227567,0.00469274,16645.0,16644.0,8.24900939]
[1672767228770,0.00469274,16645.0,16644.0,8.51936194]
[1672767229011,0.00469274,16645.0,16644.0,8.11936194]
[1672767229515,0.00469274,16645.0,16644.0,8.47998959]
[1672767230324,0.00469274,16645.0,16644.0,9.24162024]
[1672767230573,0.00469274,16645.0,16644.0,8.51936194]
[1672767232412,0.00469274,16645.0,16644.0,7.54900939]
[1672767232662,0.00469274,16645.0,16644.0,7.81936194]